Workbook

Sheet Introduction
B3: KSU-Fertilizer Tool
B5: An Excel spreadsheet designed to find the minimum priced fertilizer combination that meets nutrient requirements of N-P-K
L8: Version- 3.30.2017
B28: INSTRUCTIONS FOR THE USER:
B29: Be sure to "Enable Content" and "Enable Macros" for the spreadsheet to function correctly. This spreadsheet uses macros to solve and save scenario results.
B31: ***The Solver tool must be enabled under Excel Add-ins for this spreadsheet to work***
B32: If the solver is not enabled, here are the steps needed to load the solver add-in. This step is only needed once.
B33: Windows | D33: Click Here
B34: Mac | D34: Click Here
B36: FOR MORE INFORMATION:
B37: Deveolepd by:
B39: Gregg Ibendahl, Ph.D.
B40: Associate Professor
B41: Dept. of Agricultural Economics
B42: Kansas State University
B43: ibendahl@ksu.edu
B44: (785) 477-2071
B46: Copyright 2017 AgManager.info, K-State Department of Agricultural Economics

Sheet Home
I1: SOLVER MUST BE ENABLED IN ADD-INS
B2: Fertilizer | C2: Price per ton | D2: Use or not | E2: Minimum lbs | F2: Maximum lbs | J2: Fertilizer recommendations
B3: Anhydrous Ammonia | C3: 482 | J3: N | K3: P | L3: K
B4: Urea | C4: 353 | I4: Required | J4: 200 | K4: 100 | L4: 100
B5: UAN28 | C5: 236 | I5: Maximum
B6: UAN32 | C6: 270
B7: DAP | C7: 430
B8: MAP | C8: 448
B9: 10-34-0 | C9: 439
B10: Potash | C10: 329
B11: Ammonium nitrate | C11: 250 | I11: =IF('Fertilizer list'!D136>0, "Press Find Minimum Cost button", "") -> 
B12: AMS | C12: 200
B18: Fertilizer Prices Need to Be Updated Before Using!
B20: Solutions | I20: Nutrients Applied
B21: Fertilizers to use | C21: Pounds | D21: Cost | J21: N | K21: P | L21: K
B22: =IF(ISBLANK('Fertilizer list'!$AD4), "", 'Fertilizer list'!AD4) -> DAP | C22: =IF(B22="", "", 'Fertilizer list'!AE4) -> 217 | D22: =IF(B22="", "", 'Fertilizer list'!AG4) -> 46.655 | I22: Lbs applied | J22: =ROUND('Fertilizer list'!AK19, 0) -> 200 | K22: =ROUND('Fertilizer list'!AL19, 0) -> 100 | L22: =ROUND('Fertilizer list'!AM19, 0) -> 100
B23: =IF(ISBLANK('Fertilizer list'!$AD5), "", 'Fertilizer list'!AD5) -> Anhydrous Ammonia | C23: =IF(B23="", "", 'Fertilizer list'!AE5) -> 196 | D23: =IF(B23="", "", 'Fertilizer list'!AG5) -> 47.236 | I23: Cost per unit | J23: ='Fertilizer list'!M22 -> 0.293902439 | K23: ='Fertilizer list'!N22 -> 0.3523860021 | L23: ='Fertilizer list'!O22 -> 0.2741666667
B24: =IF(ISBLANK('Fertilizer list'!$AD6), "", 'Fertilizer list'!AD6) -> Potash | C24: =IF(B24="", "", 'Fertilizer list'!AE6) -> 167 | D24: =IF(B24="", "", 'Fertilizer list'!AG6) -> 27.4715
B25: =IF(ISBLANK('Fertilizer list'!$AD7), "", 'Fertilizer list'!AD7) ->  | C25: =IF(B25="", "", 'Fertilizer list'!AE7) ->  | D25: =IF(B25="", "", 'Fertilizer list'!AG7) -> 
B26: =IF(ISBLANK('Fertilizer list'!$AD8), "", 'Fertilizer list'!AD8) ->  | C26: =IF(B26="", "", 'Fertilizer list'!AE8) ->  | D26: =IF(B26="", "", 'Fertilizer list'!AG8) -> 
B27: =IF(ISBLANK('Fertilizer list'!AD9), "", 'Fertilizer list'!AD9) -> 
C28: Total | D28: ='Fertilizer list'!AG19 -> 121.3625
B33: Scenarios to Exam
C34: Quantities
B35: Fertilizer | C35: Scenario #1 | D35: Scenario #2 | E35: Scenario #3 | F35: Scenario #4 | G35: Scenario #5
B36: =IF(B3<>"",B3, "") -> Anhydrous Ammonia | C36: =IF(AND('Fertilizer list'!O43<>9999, 'Fertilizer list'!O43<>0), 'Fertilizer list'!O43, "") -> 196 | D36: =IF(AND('Fertilizer list'!P43<>9999, 'Fertilizer list'!P43<>0), 'Fertilizer list'!P43, "") ->  | E36: =IF(AND('Fertilizer list'!Q43<>9999, 'Fertilizer list'!Q43<>0), 'Fertilizer list'!Q43, "") ->  | F36: =IF(AND('Fertilizer list'!R43<>9999, 'Fertilizer list'!R43<>0), 'Fertilizer list'!R43, "") ->  | G36: =IF(AND('Fertilizer list'!S43<>9999, 'Fertilizer list'!S43<>0), 'Fertilizer list'!S43, "") -> 
B37: =IF(B4<>"",B4, "") -> Urea | C37: =IF(AND('Fertilizer list'!O44<>9999, 'Fertilizer list'!O44<>0), 'Fertilizer list'!O44, "") ->  | D37: =IF(AND('Fertilizer list'!P44<>9999, 'Fertilizer list'!P44<>0), 'Fertilizer list'!P44, "") ->  | E37: =IF(AND('Fertilizer list'!Q44<>9999, 'Fertilizer list'!Q44<>0), 'Fertilizer list'!Q44, "") ->  | F37: =IF(AND('Fertilizer list'!R44<>9999, 'Fertilizer list'!R44<>0), 'Fertilizer list'!R44, "") ->  | G37: =IF(AND('Fertilizer list'!S44<>9999, 'Fertilizer list'!S44<>0), 'Fertilizer list'!S44, "") -> 
B38: UAN28 | C38: =IF(AND('Fertilizer list'!O45<>9999, 'Fertilizer list'!O45<>0), 'Fertilizer list'!O45, "") ->  | D38: =IF(AND('Fertilizer list'!P45<>9999, 'Fertilizer list'!P45<>0), 'Fertilizer list'!P45, "") ->  | E38: =IF(AND('Fertilizer list'!Q45<>9999, 'Fertilizer list'!Q45<>0), 'Fertilizer list'!Q45, "") ->  | F38: =IF(AND('Fertilizer list'!R45<>9999, 'Fertilizer list'!R45<>0), 'Fertilizer list'!R45, "") ->  | G38: =IF(AND('Fertilizer list'!S45<>9999, 'Fertilizer list'!S45<>0), 'Fertilizer list'!S45, "") -> 
B39: UAN32 | C39: =IF(AND('Fertilizer list'!O46<>9999, 'Fertilizer list'!O46<>0), 'Fertilizer list'!O46, "") ->  | D39: =IF(AND('Fertilizer list'!P46<>9999, 'Fertilizer list'!P46<>0), 'Fertilizer list'!P46, "") ->  | E39: =IF(AND('Fertilizer list'!Q46<>9999, 'Fertilizer list'!Q46<>0), 'Fertilizer list'!Q46, "") ->  | F39: =IF(AND('Fertilizer list'!R46<>9999, 'Fertilizer list'!R46<>0), 'Fertilizer list'!R46, "") ->  | G39: =IF(AND('Fertilizer list'!S46<>9999, 'Fertilizer list'!S46<>0), 'Fertilizer list'!S46, "") -> 
B40: DAP | C40: =IF(AND('Fertilizer list'!O47<>9999, 'Fertilizer list'!O47<>0), 'Fertilizer list'!O47, "") -> 217 | D40: =IF(AND('Fertilizer list'!P47<>9999, 'Fertilizer list'!P47<>0), 'Fertilizer list'!P47, "") ->  | E40: =IF(AND('Fertilizer list'!Q47<>9999, 'Fertilizer list'!Q47<>0), 'Fertilizer list'!Q47, "") ->  | F40: =IF(AND('Fertilizer list'!R47<>9999, 'Fertilizer list'!R47<>0), 'Fertilizer list'!R47, "") ->  | G40: =IF(AND('Fertilizer list'!S47<>9999, 'Fertilizer list'!S47<>0), 'Fertilizer list'!S47, "") -> 
B41: MAP | C41: =IF(AND('Fertilizer list'!O48<>9999, 'Fertilizer list'!O48<>0), 'Fertilizer list'!O48, "") ->  | D41: =IF(AND('Fertilizer list'!P48<>9999, 'Fertilizer list'!P48<>0), 'Fertilizer list'!P48, "") ->  | E41: =IF(AND('Fertilizer list'!Q48<>9999, 'Fertilizer list'!Q48<>0), 'Fertilizer list'!Q48, "") ->  | F41: =IF(AND('Fertilizer list'!R48<>9999, 'Fertilizer list'!R48<>0), 'Fertilizer list'!R48, "") ->  | G41: =IF(AND('Fertilizer list'!S48<>9999, 'Fertilizer list'!S48<>0), 'Fertilizer list'!S48, "") -> 
B42: 10-34-0 | C42: =IF(AND('Fertilizer list'!O49<>9999, 'Fertilizer list'!O49<>0), 'Fertilizer list'!O49, "") ->  | D42: =IF(AND('Fertilizer list'!P49<>9999, 'Fertilizer list'!P49<>0), 'Fertilizer list'!P49, "") ->  | E42: =IF(AND('Fertilizer list'!Q49<>9999, 'Fertilizer list'!Q49<>0), 'Fertilizer list'!Q49, "") ->  | F42: =IF(AND('Fertilizer list'!R49<>9999, 'Fertilizer list'!R49<>0), 'Fertilizer list'!R49, "") ->  | G42: =IF(AND('Fertilizer list'!S49<>9999, 'Fertilizer list'!S49<>0), 'Fertilizer list'!S49, "") -> 
B43: Potash | C43: =IF(AND('Fertilizer list'!O50<>9999, 'Fertilizer list'!O50<>0), 'Fertilizer list'!O50, "") -> 167 | D43: =IF(AND('Fertilizer list'!P50<>9999, 'Fertilizer list'!P50<>0), 'Fertilizer list'!P50, "") ->  | E43: =IF(AND('Fertilizer list'!Q50<>9999, 'Fertilizer list'!Q50<>0), 'Fertilizer list'!Q50, "") ->  | F43: =IF(AND('Fertilizer list'!R50<>9999, 'Fertilizer list'!R50<>0), 'Fertilizer list'!R50, "") ->  | G43: =IF(AND('Fertilizer list'!S50<>9999, 'Fertilizer list'!S50<>0), 'Fertilizer list'!S50, "") -> 
B44: Ammonium nitrate | C44: =IF(AND('Fertilizer list'!O51<>9999, 'Fertilizer list'!O51<>0), 'Fertilizer list'!O51, "") ->  | D44: =IF(AND('Fertilizer list'!P51<>9999, 'Fertilizer list'!P51<>0), 'Fertilizer list'!P51, "") ->  | E44: =IF(AND('Fertilizer list'!Q51<>9999, 'Fertilizer list'!Q51<>0), 'Fertilizer list'!Q51, "") ->  | F44: =IF(AND('Fertilizer list'!R51<>9999, 'Fertilizer list'!R51<>0), 'Fertilizer list'!R51, "") ->  | G44: =IF(AND('Fertilizer list'!S51<>9999, 'Fertilizer list'!S51<>0), 'Fertilizer list'!S51, "") -> 
B45: AMS | C45: =IF(AND('Fertilizer list'!O52<>9999, 'Fertilizer list'!O52<>0), 'Fertilizer list'!O52, "") ->  | D45: =IF(AND('Fertilizer list'!P52<>9999, 'Fertilizer list'!P52<>0), 'Fertilizer list'!P52, "") ->  | E45: =IF(AND('Fertilizer list'!Q52<>9999, 'Fertilizer list'!Q52<>0), 'Fertilizer list'!Q52, "") ->  | F45: =IF(AND('Fertilizer list'!R52<>9999, 'Fertilizer list'!R52<>0), 'Fertilizer list'!R52, "") ->  | G45: =IF(AND('Fertilizer list'!S52<>9999, 'Fertilizer list'!S52<>0), 'Fertilizer list'!S52, "") -> 
C46: =IF(AND('Fertilizer list'!O53<>9999, 'Fertilizer list'!O53<>0), 'Fertilizer list'!O53, "") ->  | D46: =IF(AND('Fertilizer list'!P53<>9999, 'Fertilizer list'!P53<>0), 'Fertilizer list'!P53, "") ->  | E46: =IF(AND('Fertilizer list'!Q53<>9999, 'Fertilizer list'!Q53<>0), 'Fertilizer list'!Q53, "") ->  | F46: =IF(AND('Fertilizer list'!R53<>9999, 'Fertilizer list'!R53<>0), 'Fertilizer list'!R53, "") ->  | G46: =IF(AND('Fertilizer list'!S53<>9999, 'Fertilizer list'!S53<>0), 'Fertilizer list'!S53, "") -> 
C47: =IF(AND('Fertilizer list'!O54<>9999, 'Fertilizer list'!O54<>0), 'Fertilizer list'!O54, "") ->  | D47: =IF(AND('Fertilizer list'!P54<>9999, 'Fertilizer list'!P54<>0), 'Fertilizer list'!P54, "") ->  | E47: =IF(AND('Fertilizer list'!Q54<>9999, 'Fertilizer list'!Q54<>0), 'Fertilizer list'!Q54, "") ->  | F47: =IF(AND('Fertilizer list'!R54<>9999, 'Fertilizer list'!R54<>0), 'Fertilizer list'!R54, "") ->  | G47: =IF(AND('Fertilizer list'!S54<>9999, 'Fertilizer list'!S54<>0), 'Fertilizer list'!S54, "") -> 
C48: =IF(AND('Fertilizer list'!O55<>9999, 'Fertilizer list'!O55<>0), 'Fertilizer list'!O55, "") ->  | D48: =IF(AND('Fertilizer list'!P55<>9999, 'Fertilizer list'!P55<>0), 'Fertilizer list'!P55, "") ->  | E48: =IF(AND('Fertilizer list'!Q55<>9999, 'Fertilizer list'!Q55<>0), 'Fertilizer list'!Q55, "") ->  | F48: =IF(AND('Fertilizer list'!R55<>9999, 'Fertilizer list'!R55<>0), 'Fertilizer list'!R55, "") ->  | G48: =IF(AND('Fertilizer list'!S55<>9999, 'Fertilizer list'!S55<>0), 'Fertilizer list'!S55, "") -> 
C49: =IF(AND('Fertilizer list'!O56<>9999, 'Fertilizer list'!O56<>0), 'Fertilizer list'!O56, "") ->  | D49: =IF(AND('Fertilizer list'!P56<>9999, 'Fertilizer list'!P56<>0), 'Fertilizer list'!P56, "") ->  | E49: =IF(AND('Fertilizer list'!Q56<>9999, 'Fertilizer list'!Q56<>0), 'Fertilizer list'!Q56, "") ->  | F49: =IF(AND('Fertilizer list'!R56<>9999, 'Fertilizer list'!R56<>0), 'Fertilizer list'!R56, "") ->  | G49: =IF(AND('Fertilizer list'!S56<>9999, 'Fertilizer list'!S56<>0), 'Fertilizer list'!S56, "") -> 
B50: Application cost
B52: Total cost | C52: =IF(AND('Fertilizer list'!O59<>9999, 'Fertilizer list'!O59<>0), 'Fertilizer list'!O59, "") -> 121.3625 | D52: =IF(AND('Fertilizer list'!P59<>9999, 'Fertilizer list'!P59<>0), 'Fertilizer list'!P59, "") ->  | E52: =IF(AND('Fertilizer list'!Q59<>9999, 'Fertilizer list'!Q59<>0), 'Fertilizer list'!Q59, "") ->  | F52: =IF(AND('Fertilizer list'!R59<>9999, 'Fertilizer list'!R59<>0), 'Fertilizer list'!R59, "") ->  | G52: =IF(AND('Fertilizer list'!S59<>9999, 'Fertilizer list'!S59<>0), 'Fertilizer list'!S59, "") ->  | H52: =MIN(C52:G52) -> 121.3625
C53: =IF(C52=$H$52, TRUE, FALSE) -> TRUE | D53: =IF(D52=$H$52, TRUE, FALSE) -> FALSE | E53: FALSE | F53: FALSE | G53: FALSE

Sheet Instructions
A1: This spreadsheet is designed to find the minimum priced fertilizer combination that meets nutrient requirements of N-P-K
A2: The Solver tool must be enabled under Excel Add-ins for this spreadsheet to work
B4: If the solver is not enabled, here are the steps needed to load the solver add-in. This step is only needed once
A5: Windows | B5: https://support.office.com/en-us/article/Load-the-Solver-Add-in-612926fc-d53b-46b4-872c-e24772f078ca?ui=en-US&rs=en-US&ad=US&fromAR=1
A6: Mac | B6: https://support.office.com/en-us/article/Load-the-Solver-Add-in-in-Excel-2016-for-Mac-d7a34027-56bf-4569-9b42-45a624c3e774
A8: Home page
A9: Cells in blue are for user input. Other cells are read only.
A11: Big box in upper left
A12: A default list of fertilizers is listed and can be expanded by adding more to the list.
A13: Prices should be updated by the user to reflect current and local prices
A14: The 'Use or not' checkboxes are used to control whether Excel should possibly include that particular fertilizer in the mix
B15: Uncheck the box if a fertilizer should be excluded.
B16: Check a box if that fertilizer should be a candidate for a fertilizer in the low cost mix
B17: Any blank lines in the fertilizer list should have the corresponding checkbox NOT checked
A18: The minimum lbs and the maximum lbs are optional inputs if for some reason the use of that particular fertilizer
B19: is either required or restricted. Leaving these two cells blank will default to a minimum pounds of
B20: 0 lbs and a maximum pounds of 1000 lbs.
A22: Smaller box to the right
A23: The required row is the minimum pounds of N, P, and K required to meet the fertility needs of that crop. This is a required row.
A24: The maximum row is optional and is used if there is a need to limit the applied amount of N-P-K.
B25: If left blank, this row defaults to a maximum of 1000 lbs.
A27: After making any worksheet change, the red "Find Minimum Cost" button needs to be pressed to resolve for the correct
B28: fertilizer combination
A30: The cost per unit (i.e., nutrient cost per pound of N, P, or K) is based on first calculating the nitrogen price per pound of N
B31: and then calculating P based on the remainder. There may be times when this calculation is incorrect.
B32: However, it does not affect the answer to the minimum cost fertilizer combination.
B33: Adding any fertilizers that have all 3 nutrients will not correctly calculate a cost per unit.
A35: Scenarios
A36: This bottom section allows the user to store the solution as a possible scenario to consider.
A37: Once Excel has calculated a solution, press the blue "add scenario" button to put the quantities of those fertilizers into the table
A38: Different solutions can be generated by using the constraints available in the main table in the upper left hand corner.
A39: For example, once the first solution is identified, just unclick the "use" checkbox to get a new solution that doesn't use that
A40: particular fertilizer. Once all the possible solutions are added to the table, What-If analyses can be run by adjusting fertilizer prices.
A41: As the scenario table only stores the quantities, changing prices only affects the total cost of that option.
A43: Fertilizer list page
A44: If any additional fertilizers are added the N, P, and K percentages need to be added on this page. Do not add to the list of fertilizers
B45: here as this list comes from the Home page.

Sheet Fertilizer list (old) (hidden)
A2: Quantity | D2: Formulation (if use is true) | G2: # per ton | J2: Price per unit
B3: $ / ton | C3: Fertilizer | D3: N | E3: P | F3: K | G3: N | H3: P | I3: K | J3: N | K3: P | L3: K | M3: Checkbox | O3: N price to use | P3: N provided from DAP MAP and 10-34-0 | Q3: Tons of fertilzer to get required P | R3: Lbs of fertilizer required to get required P | S3: Pounds of N that DAP MAP provide and which has value | T3: Value of the N | U3: Value of P | V3: Price of P per unit | X3: Pounds of N needed after applying P | Y3: Lbs of fertilizer to get required N | AA3: Price per pound of fertilizer
A4: 0.0008677298311 | B4: =Home!C3 -> 482 | C4: Anhydrous Ammonia | D4: =IF($M4,D35,0) -> 0 | E4: =IF($M4,E35,0) -> 0 | F4: 0 | G4: =2000 *D4/100 -> 0 | H4: =2000 *E4/100 -> 0 | I4: 0 | J4: =IFERROR($B4/G4,"") ->  | M4: FALSE | O4: =IF(AND(M4, B4>0),J4,"") ->  | X4: =MAX(0, $G$24-$Z$24) -> 0 | Y4: =X4/G4 * 2000 ->  | AA4: =B4/2000 -> 0.241
A5: 0 | B5: =Home!C4 -> 353 | C5: Urea | D5: =IF($M5,D36,0) -> 0 | E5: 0 | F5: 0 | G5: =2000 *D5/100 -> 0 | H5: =2000 *E5/100 -> 0 | I5: =2000 *F5/100 -> 0 | J5: =IFERROR($B5/G5,"") ->  | M5: FALSE | O5: =IF(AND(M5, B5>0),J5,"") ->  | X5: =MAX(0, $G$24-$Z$24) -> 0 | Y5: =X5/G5 * 2000 ->  | AA5: =B5/2000 -> 0.1765
A6: 0 | B6: =Home!C5 -> 236 | C6: UAN28 | D6: =IF($M6,D37,0) -> 0 | E6: 0 | F6: 0 | G6: 0 | H6: 0 | I6: 0 | M6: FALSE | X6: =MAX(0, $G$24-$Z$24) -> 0 | AA6: 0.118
A7: 0 | B7: 200 | C7: UAN32 | D7: =IF($M7,D38,0) -> 0 | E7: 0 | F7: 0 | G7: 0 | H7: 0 | I7: 0 | M7: FALSE | X7: =MAX(0, $G$24-$Z$24) -> 0 | AA7: 0.1
A8: 0 | B8: 10 | C8: DAP | D8: =IF($M8,D39,0) -> 0 | E8: 0 | F8: 0 | G8: 0 | H8: 0 | I8: 0 | M8: FALSE | P8: =IFERROR($G$25/H8 * G8, "") ->  | Q8: =IFERROR($G$25 / H8, 0) -> 0 | R8: =Q8*2000 -> 0 | S8: =MIN(P8,$G$24) -> 100 | T8: =S8*$O$13 -> 0 | U8: =Q8*B8 - T8 -> 0 | V8: =IFERROR(U8/$G$25, 0) -> 0 | X8: =MAX(0, $G$24-$Z$24) -> 0 | AA8: 0.005
A9: 0.04807692308 | B9: 100 | C9: MAP | D9: =IF($M9,D40,0) -> 0 | E9: 0 | F9: 0 | G9: 0 | H9: 0 | I9: 0 | M9: FALSE | P9: =IFERROR($G$25/H9 * G9, "") ->  | Q9: =IFERROR($G$25 / H9, 0) -> 0 | R9: =Q9*2000 -> 0 | S9: =MIN(P9,$G$24) -> 100 | T9: =S9*$O$13 -> 0 | U9: =Q9*B9 - T9 -> 0 | V9: =IFERROR(U9/$G$25, 0) -> 0 | X9: 0 | AA9: 0.05
A10: 0 | B10: 300 | C10: 10-34-0 | D10: =IF($M10,D41,0) -> 0 | E10: 0 | F10: 0 | G10: 0 | H10: 0 | I10: 0 | M10: FALSE | Q10: 0 | R10: 0 | S10: =MIN(P10,$G$24) -> 100 | T10: 0 | U10: =Q10*B10 - T10 -> 0 | V10: 0 | X10: 0 | Y10: =X10/G10 * 2000 ->  | AA10: 0.15
A11: 0 | B11: =Home!C10 -> 329 | C11: Potash | D11: =IF($M11,D42,0) -> 0 | E11: 0 | F11: 0 | G11: 0 | H11: 0 | I11: 0 | L11: =$B11/I11 ->  | M11: FALSE | X11: 0 | AA11: 0.1645
N13: Min N price | O13: =MIN(O4:O11) -> 0 | U13: Min P price | V13: =MIN(V8:V10) -> 0
D19: Minimize
D20: =SUMPRODUCT(A4:A11,B4:B11) -> 5.225938086 | AG20: Percentage | AK20: Pounds
AG21: 2 | AH21: 3 | AI21: 4
G22: fertilization recommendations | P22: Lookup table to find the P info | X22: 2 | Y22: 3 | Z22: 4 | AA22: 5 | AB22: 6 | AE22: Total cost | AG22: N | AH22: P | AI22: K | AK22: N | AL22: P | AM22: K
D23: Constraint | G23: pounds | P23: Price of P per unit | Q23: Fertilizer | R23: Lb of fert | S23: Lb of N provided | T23: Price of P per unit | U23: Price of fertilizer per pound | X23: Fertilizer | Y23: Lb | Z23: N contribution | AA23: Price per unit | AB23: price per pound of fertilizer | AE23: =Y24*AB24 -> 0 | AG23: =VLOOKUP($X24,$C$4:$F$11,AG$21,FALSE) -> 0 | AH23: =VLOOKUP($X24,$C$4:$F$11,AH$21,FALSE) -> 0 | AI23: 0 | AK23: =$Y24 * AG23/100 -> 0 | AL23: =$Y24 * AH23/100 -> 0 | AM23: 0
D24: N amount | E24: =SUMPRODUCT(A4:A11,G4:G11) -> 0 | F24: > | G24: 100 | P24: =V8 -> 0 | Q24: =C8 -> DAP | R24: =R8 -> 0 | S24: =S8 -> 100 | T24: =V8 -> 0 | U24: =AA8 -> 0.005 | X24: =VLOOKUP($V$13,$P$24:$S$26,X22,FALSE) -> DAP | Y24: =VLOOKUP($V$13,$P$24:$S$26,Y22,FALSE) -> 0 | Z24: =VLOOKUP($V$13,$P$24:$T$26,Z22,FALSE) -> 100 | AA24: =VLOOKUP($V$13,$P$24:$U$26,AA22,FALSE) -> 0 | AB24: =VLOOKUP($V$13,$P$24:$U$26,AB22,FALSE) -> 0.005
D25: P | E25: =SUMPRODUCT(A4:A11,H4:H11) -> 0 | F25: > | G25: 0 | P25: =V9 -> 0 | Q25: =C9 -> MAP | R25: =R9 -> 0 | S25: 100 | T25: =V9 -> 0 | U25: =AA9 -> 0.05
D26: K | E26: =SUMPRODUCT(A4:A11,I4:I11) -> 0 | F26: > | G26: 0 | P26: 0 | Q26: 10-34-0 | R26: =R10 -> 0 | S26: 100 | T26: 0 | U26: 0.15
P31: Lookup table to find the N info | X31: 2 | Y31: 3 | Z31: 4 | AA31: 5 | AB31: 6
P32: Price of N per unit | Q32: Fertilizer | R32: Lb of fert | T32: Price of N per unit | U32: Price of fertilizer per pound | X32: Fertilizer | Y32: Lb | Z32: N contribution | AA32: Price per unit | AE32: =Y33*AB33 ->  | AG32: =VLOOKUP($X33,$C$4:$F$11,AG$21,FALSE) ->  | AH32: =VLOOKUP($X33,$C$4:$F$11,AH$21,FALSE) ->  | AI32: =VLOOKUP($X33,$C$4:$F$11,AI$21,FALSE) ->  | AK32: =$Y33 * AG32/100 ->  | AL32: =$Y33 * AH32/100 ->  | AM32: =$Y33 * AI32/100 -> 
D33: Formulation | P33: =O4 ->  | Q33: =C4 -> Anhydrous Ammonia | R33: =Y4 ->  | T33: =P33 ->  | U33: =AA4 -> 0.241 | X33: =VLOOKUP($O$13,$P$33:$T$36,X31,FALSE) ->  | Y33: =VLOOKUP($O$13,$P$33:$T$36,Y31,FALSE) ->  | AA33: =VLOOKUP($O$13,$P$33:$U$36,AA31,FALSE) ->  | AB33: =VLOOKUP($O$13,$P$33:$U$36,AB31,FALSE) -> 
D34: N | E34: P | F34: K | P34: =O5 ->  | Q34: =C5 -> Urea | R34: =Y5 ->  | T34: =P34 ->  | U34: =AA5 -> 0.1765
C35: Anhydrous Ammonia | D35: 82 | E35: 0 | F35: 0 | Q35: UAN28 | U35: 0.118
C36: Urea | D36: 46 | E36: 0 | F36: 0 | Q36: UAN32 | U36: 0.1
C37: UAN28 | D37: 28 | E37: 0 | F37: 0
C38: UAN32 | D38: 32 | E38: 0 | F38: 0
C39: DAP | D39: 18 | E39: 46 | F39: 0
C40: MAP | D40: 11 | E40: 52 | F40: 0 | P40: K info | X40: Potash | Y40: =G26/I11 * 2000 ->  | AA40: =L11 ->  | AB40: =AA11 -> 0.1645 | AE40: =Y41*AB41 -> 0 | AG40: 0 | AH40: 0 | AI40: 60 | AK40: =$Y40 * AG40/100 ->  | AL40: =$Y40 * AH40/100 -> 
C41: 10-34-0 | D41: 10 | E41: 34 | F41: 0
C42: Potash | D42: 0 | E42: 0 | F42: 60 | AD42: Grand total | AE42: =SUM(AE23:AE40) ->  | AK42: =SUM(AK23:AK40) ->  | AL42: =SUM(AL23:AL40) -> 

Sheet Fertilizer list
AH1: Formaulation | AK1: Pounds
A2: Quantity | D2: Formulation | G2: Formulation (if use is true) | J2: # per ton | M2: Price per unit | T2: Units | AD2: 3 | AF2: 2 | AH2: 7 | AI2: 8 | AJ2: 9
B3: $ / ton | C3: Fertilizer | D3: N | E3: P | F3: K | G3: N | H3: P | I3: K | J3: N | K3: P | L3: K | M3: N | N3: P | O3: K | P3: Checkbox | Q3: Lower requirement | R3: Upperlimit | S3: Cost | T3: N | U3: P | V3: K | W3: Revised checkbox if fertilizer is blank | AA3: List of products used | AD3: Product | AE3: Lbs | AF3: $ per ton | AG3: Cost | AH3: N | AI3: P | AJ3: K | AK3: N | AL3: P | AM3: K
A4: 0.0980911983 | B4: =Home!C3 -> 482 | C4: =Home!B3 -> Anhydrous Ammonia | D4: 82 | E4: 0 | F4: 0 | G4: =IF($P4,D4,0) -> 82 | H4: 0 | I4: 0 | J4: =2000 *G4/100 -> 1640 | K4: =2000 *H4/100 -> 0 | L4: 0 | M4: =IF(AND($G4>0, $H4=0, $I4=0, A4>0), $B4/J4, "") -> 0.293902439 | N4: =IF(AND($G4=0, $H4>0, $I4=0, A4>0), $B4/K4, "") ->  | O4: =IF(AND($G4=0, $H4=0, $I4>0, A4>0), $B4/L4, "") ->  | P4: TRUE | Q4: =IF(Home!E3="", 0, Home!E3/2000) -> 0 | R4: =IF(Home!F3="", 10000, Home!F3/2000) -> 10000 | S4: =A4 *B4 -> 47.27995758 | W4: =IF(AND(P4, C4<>0), TRUE, FALSE) -> TRUE | AA4: 1 | AB4: =LARGE($A$4:$A$17, AA4) -> 0.1086956522 | AC4: =IF(AB4>0,AB4, "") -> 0.1086956522 | AD4: =IF(ISNUMBER($AC4), VLOOKUP($AB4, $A$4:$O$17, AD$2, FALSE), "") -> DAP | AE4: =ROUND(AB4 * 2000, 0) -> 217 | AF4: =IF(ISNUMBER($AC4), VLOOKUP($AB4, $A$4:$O$17, AF$2, FALSE), "") -> 430 | AG4: =IF(ISNUMBER(AF4), AF4*AE4/2000, 0) -> 46.655 | AH4: =IF(ISNUMBER($AC4), VLOOKUP($AB4, $A$4:$O$17, AH$2, FALSE), 0) -> 18 | AI4: =IF(ISNUMBER($AC4), VLOOKUP($AB4, $A$4:$O$17, AI$2, FALSE), 0) -> 46 | AJ4: 0 | AK4: =$AE4 * AH4 / 100 -> 39.06 | AL4: =$AE4 * AI4 / 100 -> 99.82 | AM4: 0
A5: 0 | B5: =Home!C4 -> 353 | C5: =Home!B4 -> Urea | D5: 46 | E5: 0 | F5: 0 | G5: 46 | H5: 0 | I5: 0 | J5: =2000 *G5/100 -> 920 | K5: 0 | L5: 0 | M5: =IF(AND($G5>0, $H5=0, $I5=0, A5>0), $B5/J5, "") ->  | N5: =IF(AND($G5=0, $H5>0, $I5=0, A5>0), $B5/K5, "") ->  | O5: =IF(AND($G5=0, $H5=0, $I5>0, A5>0), $B5/L5, "") ->  | P5: TRUE | Q5: =IF(Home!E4="", 0, Home!E4/2000) -> 0 | R5: =IF(Home!F4="", 10000, Home!F4/2000) -> 10000 | S5: =A5 *B5 -> 0 | W5: =IF(AND(P5, C5<>0), TRUE, FALSE) -> TRUE | AA5: 2 | AB5: =LARGE($A$4:$A$17, AA5) -> 0.0980911983 | AC5: =IF(AB5>0,AB5, "") -> 0.0980911983 | AD5: =IF(ISNUMBER($AC5), VLOOKUP($AB5, $A$4:$O$17, AD$2, FALSE), "") -> Anhydrous Ammonia | AE5: =ROUND(AB5 * 2000, 0) -> 196 | AF5: =IF(ISNUMBER($AC5), VLOOKUP($AB5, $A$4:$O$17, AF$2, FALSE), "") -> 482 | AG5: =IF(ISNUMBER(AF5), AF5*AE5/2000, 0) -> 47.236 | AH5: =IF(ISNUMBER($AC5), VLOOKUP($AB5, $A$4:$O$17, AH$2, FALSE), 0) -> 82 | AI5: 0 | AJ5: 0 | AK5: =$AE5 * AH5 / 100 -> 160.72 | AL5: =$AE5 * AI5 / 100 -> 0 | AM5: =$AE5 * AJ5 / 100 -> 0
A6: 0 | B6: =Home!C5 -> 236 | C6: =Home!B5 -> UAN28 | D6: 28 | E6: 0 | F6: 0 | G6: 28 | H6: 0 | I6: 0 | J6: 560 | K6: 0 | L6: 0 | P6: TRUE | Q6: =IF(Home!E5="", 0, Home!E5/2000) -> 0 | R6: =IF(Home!F5="", 10000, Home!F5/2000) -> 10000 | S6: 0 | W6: TRUE | AA6: 3 | AB6: 0.08333333333 | AC6: 0.08333333333 | AD6: Potash | AE6: =ROUND(AB6 * 2000, 0) -> 167 | AF6: 329 | AG6: 27.4715 | AH6: 0 | AI6: 0 | AJ6: 60 | AK6: 0 | AL6: 0 | AM6: 100.2
A7: 0 | B7: =Home!C6 -> 270 | C7: =Home!B6 -> UAN32 | D7: 32 | E7: 0 | F7: 0 | G7: 32 | H7: 0 | I7: 0 | J7: 640 | K7: 0 | L7: 0 | P7: TRUE | Q7: =IF(Home!E6="", 0, Home!E6/2000) -> 0 | R7: =IF(Home!F6="", 10000, Home!F6/2000) -> 10000 | S7: 0 | W7: TRUE | AA7: 4 | AB7: 0 | AE7: =ROUND(AB7 * 2000, 0) -> 0 | AG7: 0 | AH7: 0 | AI7: 0 | AJ7: 0 | AK7: 0 | AL7: 0 | AM7: 0
A8: 0.1086956522 | B8: =Home!C7 -> 430 | C8: =Home!B7 -> DAP | D8: 18 | E8: 46 | F8: 0 | G8: 18 | H8: 46 | I8: 0 | J8: 360 | K8: 920 | L8: 0 | P8: TRUE | Q8: =IF(Home!E7="", 0, Home!E7/2000) -> 0 | R8: =IF(Home!F7="", 10000, Home!F7/2000) -> 10000 | S8: 46.73913043 | W8: TRUE | AA8: 5 | AB8: 0 | AE8: 0 | AG8: 0 | AH8: 0 | AI8: 0 | AJ8: 0 | AK8: 0 | AL8: 0 | AM8: 0
A9: 0 | B9: =Home!C8 -> 448 | C9: =Home!B8 -> MAP | D9: 11 | E9: 52 | F9: 0 | G9: 11 | H9: 52 | I9: 0 | J9: 220 | K9: 1040 | L9: 0 | P9: TRUE | Q9: =IF(Home!E8="", 0, Home!E8/2000) -> 0 | R9: =IF(Home!F8="", 10000, Home!F8/2000) -> 10000 | S9: 0 | W9: TRUE | AA9: 6 | AB9: 0 | AE9: 0 | AG9: 0 | AH9: 0 | AI9: 0 | AJ9: 0 | AK9: 0 | AL9: 0 | AM9: 0
A10: 0 | B10: =Home!C9 -> 439 | C10: =Home!B9 -> 10-34-0 | D10: 10 | E10: 34 | F10: 0 | G10: 10 | H10: 34 | I10: 0 | J10: 200 | K10: 680 | L10: 0 | P10: TRUE | Q10: =IF(Home!E9="", 0, Home!E9/2000) -> 0 | R10: =IF(Home!F9="", 10000, Home!F9/2000) -> 10000 | S10: 0 | W10: TRUE | AA10: 7 | AB10: 0 | AE10: 0 | AG10: 0 | AH10: 0 | AI10: 0 | AJ10: 0 | AK10: 0 | AL10: 0 | AM10: 0
A11: 0.08333333333 | B11: =Home!C10 -> 329 | C11: =Home!B10 -> Potash | D11: 0 | E11: 0 | F11: 60 | G11: 0 | H11: 0 | I11: 60 | J11: 0 | K11: 0 | L11: 1200 | O11: 0.2741666667 | P11: TRUE | Q11: =IF(Home!E10="", 0, Home!E10/2000) -> 0 | R11: =IF(Home!F10="", 10000, Home!F10/2000) -> 10000 | S11: 27.41666667 | W11: TRUE | AA11: 8 | AB11: 0 | AE11: 0 | AG11: 0 | AH11: 0 | AI11: 0 | AJ11: 0 | AK11: 0 | AL11: 0 | AM11: 0
A12: 0 | B12: =Home!C11 -> 250 | C12: =Home!B11 -> Ammonium nitrate | D12: 34 | E12: 0 | F12: 0 | G12: =IF($P12,D12,0) -> 34 | H12: =IF($P12,E12,0) -> 0 | I12: =IF($P12,F12,0) -> 0 | J12: =2000 *G12/100 -> 680 | K12: =2000 *H12/100 -> 0 | L12: =2000 *I12/100 -> 0 | P12: TRUE | Q12: =IF(Home!E11="", 0, Home!E11/2000) -> 0 | R12: =IF(Home!F11="", 10000, Home!F11/2000) -> 10000 | S12: 0 | W12: TRUE | AA12: 9 | AB12: 0 | AE12: 0 | AG12: 0 | AH12: 0 | AI12: 0 | AJ12: 0 | AK12: 0 | AL12: 0 | AM12: 0
A13: 0 | B13: =Home!C12 -> 200 | C13: =Home!B12 -> AMS | D13: 21 | E13: 0 | F13: 0 | G13: 21 | H13: 0 | I13: 0 | J13: 420 | K13: 0 | L13: 0 | P13: TRUE | Q13: =IF(Home!E12="", 0, Home!E12/2000) -> 0 | R13: =IF(Home!F12="", 10000, Home!F12/2000) -> 10000 | S13: 0 | W13: TRUE | AA13: 10 | AB13: 0 | AE13: 0 | AG13: 0 | AH13: 0 | AI13: 0 | AJ13: 0 | AK13: 0 | AL13: 0 | AM13: 0
A14: 0 | B14: =Home!C13 -> 0 | C14: =Home!B13 -> 0 | G14: 0 | H14: 0 | I14: 0 | J14: 0 | K14: 0 | L14: 0 | P14: FALSE | Q14: =IF(Home!E13="", 0, Home!E13/2000) -> 0 | R14: =IF(Home!F13="", 10000, Home!F13/2000) -> 10000 | S14: 0 | W14: FALSE | AA14: 11 | AB14: 0 | AE14: 0 | AG14: 0 | AH14: 0 | AI14: 0 | AJ14: 0 | AK14: 0 | AL14: 0 | AM14: 0
A15: 0 | B15: =Home!C14 -> 0 | C15: =Home!B14 -> 0 | G15: 0 | H15: 0 | I15: 0 | J15: 0 | K15: 0 | L15: 0 | P15: FALSE | Q15: =IF(Home!E14="", 0, Home!E14/2000) -> 0 | R15: =IF(Home!F14="", 10000, Home!F14/2000) -> 10000 | S15: 0 | W15: FALSE | AA15: 12 | AB15: 0 | AE15: 0 | AG15: 0 | AH15: 0 | AI15: 0 | AJ15: 0 | AK15: 0 | AL15: 0 | AM15: 0
A16: 0 | B16: =Home!C15 -> 0 | C16: =Home!B15 -> 0 | G16: 0 | H16: 0 | I16: 0 | J16: 0 | K16: 0 | L16: 0 | P16: FALSE | Q16: =IF(Home!E15="", 0, Home!E15/2000) -> 0 | R16: =IF(Home!F15="", 10000, Home!F15/2000) -> 10000 | S16: 0 | W16: FALSE | AA16: 13 | AB16: 0 | AE16: 0 | AG16: 0 | AH16: 0 | AI16: 0 | AJ16: 0 | AK16: 0 | AL16: 0 | AM16: 0
A17: 0 | B17: =Home!C16 -> 0 | C17: =Home!B16 -> 0 | G17: 0 | H17: 0 | I17: 0 | J17: 0 | K17: 0 | L17: 0 | P17: FALSE | Q17: =IF(Home!E16="", 0, Home!E16/2000) -> 0 | R17: =IF(Home!F16="", 10000, Home!F16/2000) -> 10000 | S17: 0 | W17: FALSE | AA17: 14 | AB17: 0 | AE17: 0 | AG17: 0 | AH17: 0 | AI17: 0 | AJ17: 0 | AK17: 0 | AL17: 0 | AM17: 0
G18: 0 | H18: 0 | I18: 0 | J18: 0 | K18: 0 | L18: 0
R19: Total cost | S19: =SUM(S4:S17) -> 121.4357547 | AF19: sum | AG19: =SUM(AG4:AG17) -> 121.3625 | AJ19: Sum | AK19: =SUM(AK4:AK17) -> 199.78 | AL19: =SUM(AL4:AL17) -> 99.82 | AM19: 100.2
M20: =COUNT(M4:M17) -> 1 | O20: =COUNT(O4:O17) -> 1
L21: Min price per unit | M21: =IF(M20=1, LARGE(M4:M17, 1), "") -> 0.293902439 | N21: =IFERROR((S19-K37)/ E34, "") -> 0.3523860021 | O21: =IF(O20=1, LARGE(O4:O17, 1), "") -> 0.2741666667
L22: Answer | M22: =IF(ISNUMBER(M21), M21, IF(G33>0, "Unable to calculate a price per unit", "")) -> 0.293902439 | N22: =IF(M22= "Unable to calculate a price per unit", M22, N21) -> 0.3523860021 | O22: =O21 -> 0.2741666667
D27: Without application cost | G27: With app cost
D28: Minimize | G28: material | H28: applications | I28: Minimize
D29: =SUMPRODUCT(A4:A17,B4:B17) -> 121.4357547 | G29: =SUMPRODUCT(A4:A17, B4:B17, Y4:Y17) -> 0 | H29: =SUMPRODUCT(X4:X17, Y4:Y17) -> 0 | I29: =G29+H29 -> 0
G31: fertilization recommendations
D32: Constraint | G32: pounds | I32: Maximum level | K32: Cost
D33: N amount | E33: =SUMPRODUCT(A4:A17,J4:J17) -> 200 | F33: > | G33: =Home!J4 -> 200 | I33: =IF(Home!J5="", 10000, Home!J5) -> 10000 | K33: =IFERROR(E33*M21, 0) -> 58.7804878
D34: P | E34: =SUMPRODUCT(A4:A17,K4:K17) -> 100 | F34: > | G34: =Home!K4 -> 100 | I34: =IF(Home!K5="", 10000, Home!K5) -> 10000
D35: K | E35: =SUMPRODUCT(A4:A17,L4:L17) -> 100 | F35: > | G35: =Home!L4 -> 100 | I35: =IF(Home!L5="", 10000, Home!L5) -> 10000 | K35: =IFERROR(G35*O21, 0) -> 27.41666667
J37: sum | K37: =SUM(K33:K35) -> 86.19715447
A40: 1 | B40: 2 | C40: 3 | D40: 4 | E40: 5 | F40: 6 | G40: 7 | H40: 8 | I40: 9 | J40: 10 | K40: 11 | L40: 12 | M40: 13 | N40: 14 | O40: 15 | P40: 16 | Q40: 17 | R40: 18 | S40: 19 | T40: 20 | U40: 21
B42: Worksheet values | D42: Check | H42: Latest Solution | N42: Scenarios
B43: =B4 -> 482 | C43: 482 | D43: =IF(B43=C43, 0, 1) -> 0 | H43: =C4 -> Anhydrous Ammonia | I43: =ROUND(A4*2000, 0) -> 196 | N43: =H43 -> Anhydrous Ammonia | O43: 196 | P43: 9999 | Q43: 9999 | R43: 9999 | S43: 9999
B44: =B5 -> 353 | C44: 353 | D44: =IF(B44=C44, 0, 1) -> 0 | H44: =C5 -> Urea | I44: =ROUND(A5*2000, 0) -> 0 | N44: =H44 -> Urea | O44: 0 | P44: 9999 | Q44: 9999 | R44: 9999 | S44: 9999
B45: 236 | C45: 236 | D45: 0 | H45: UAN28 | I45: 0 | N45: UAN28 | O45: 0 | P45: 9999 | Q45: 9999 | R45: 9999 | S45: 9999
B46: 270 | C46: 270 | D46: 0 | H46: UAN32 | I46: 0 | N46: UAN32 | O46: 0 | P46: 9999 | Q46: 9999 | R46: 9999 | S46: 9999
B47: 430 | C47: 430 | D47: 0 | H47: DAP | I47: 217 | N47: DAP | O47: 217 | P47: 9999 | Q47: 9999 | R47: 9999 | S47: 9999
B48: 448 | C48: 448 | D48: 0 | H48: MAP | I48: 0 | N48: MAP | O48: 0 | P48: 9999 | Q48: 9999 | R48: 9999 | S48: 9999
B49: 439 | C49: 439 | D49: 0 | H49: 10-34-0 | I49: 0 | N49: 10-34-0 | O49: 0 | P49: 9999 | Q49: 9999 | R49: 9999 | S49: 9999
B50: 329 | C50: 329 | D50: 0 | H50: Potash | I50: 167 | N50: Potash | O50: 167 | P50: 9999 | Q50: 9999 | R50: 9999 | S50: 9999
B51: 250 | C51: 250 | D51: 0 | H51: Ammonium nitrate | I51: 0 | N51: Ammonium nitrate | O51: 0 | P51: 9999 | Q51: 9999 | R51: 9999 | S51: 9999
B52: 200 | C52: 200 | D52: 0 | H52: AMS | I52: 0 | N52: AMS | O52: 0 | P52: 9999 | Q52: 9999 | R52: 9999 | S52: 9999
B53: 0 | C53: 0 | D53: 0 | H53: 0 | I53: 0 | N53: 0 | O53: 0 | P53: 9999 | Q53: 9999 | R53: 9999 | S53: 9999
B54: 0 | C54: 0 | D54: 0 | H54: 0 | I54: 0 | N54: 0 | O54: 0 | P54: 9999 | Q54: 9999 | R54: 9999 | S54: 9999
B55: 0 | C55: 0 | D55: 0 | H55: 0 | I55: 0 | N55: 0 | O55: 0 | P55: 9999 | Q55: 9999 | R55: 9999 | S55: 9999
B56: 0 | C56: 0 | D56: 0 | H56: 0 | I56: 0 | N56: 0 | O56: 0 | P56: 9999 | Q56: 9999 | R56: 9999 | S56: 9999
B57: =C4 -> Anhydrous Ammonia | C57: Anhydrous Ammonia | D57: 0 | N57: App cost | O57: =Home!C50 -> 0 | P57: =Home!D50 -> 0 | Q57: =Home!E50 -> 0 | R57: =Home!F50 -> 0 | S57: =Home!G50 -> 0
B58: Urea | C58: Urea | D58: 0
B59: UAN28 | C59: UAN28 | D59: 0 | O59: =IF(O43=9999, 9999, SUMPRODUCT(O43:O56, $B$4:$B$17) / 2000 + O57) -> 121.3625 | P59: =IF(P43=9999, 9999, SUMPRODUCT(P43:P56, $B$4:$B$17) / 2000 + P57) -> 9999 | Q59: 9999 | R59: 9999 | S59: 9999
B60: UAN32 | C60: UAN32 | D60: 0
B61: DAP | C61: DAP | D61: 0
B62: MAP | C62: MAP | D62: 0
B63: 10-34-0 | C63: 10-34-0 | D63: 0
B64: Potash | C64: Potash | D64: 0
B65: Ammonium nitrate | C65: Ammonium nitrate | D65: 0
B66: AMS | C66: AMS | D66: 0
B67: 0 | C67: 0 | D67: 0
B68: 0 | C68: 0 | D68: 0
B69: 0 | C69: 0 | D69: 0
B70: 0 | C70: 0 | D70: 0
B71: =P4 -> TRUE | C71: TRUE | D71: 0
B72: TRUE | C72: TRUE | D72: 0
B73: TRUE | C73: TRUE | D73: 0
B74: TRUE | C74: TRUE | D74: 0
B75: TRUE | C75: TRUE | D75: 0
B76: TRUE | C76: TRUE | D76: 0
B77: TRUE | C77: TRUE | D77: 0
B78: TRUE | C78: TRUE | D78: 0
B79: TRUE | C79: TRUE | D79: 0
B80: TRUE | C80: TRUE | D80: 0
B81: FALSE | C81: FALSE | D81: 0
B82: FALSE | C82: FALSE | D82: 0
B83: FALSE | C83: FALSE | D83: 0
B84: FALSE | C84: FALSE | D84: 0
B85: =Q4 -> 0 | C85: 0 | D85: 0
B86: 0 | C86: 0 | D86: 0
B87: 0 | C87: 0 | D87: 0
B88: 0 | C88: 0 | D88: 0
B89: 0 | C89: 0 | D89: 0
B90: 0 | C90: 0 | D90: 0
B91: 0 | C91: 0 | D91: 0
B92: 0 | C92: 0 | D92: 0
B93: 0 | C93: 0 | D93: 0
B94: 0 | C94: 0 | D94: 0
B95: 0 | C95: 0 | D95: 0
B96: 0 | C96: 0 | D96: 0
B97: 0 | C97: 0 | D97: 0
B98: 0 | C98: 0 | D98: 0
B99: =R4 -> 10000 | C99: 10000 | D99: 0
B100: 10000 | C100: 10000 | D100: 0
B101: 10000 | C101: 10000 | D101: 0
B102: 10000 | C102: 10000 | D102: 0
B103: 10000 | C103: 10000 | D103: 0
B104: 10000 | C104: 10000 | D104: 0
B105: 10000 | C105: 10000 | D105: 0
B106: 10000 | C106: 10000 | D106: 0
B107: 10000 | C107: 10000 | D107: 0
B108: 10000 | C108: 10000 | D108: =IF(B108=C108, 0, 1) -> 0
B109: 10000 | C109: 10000 | D109: 0
B110: 10000 | C110: 10000 | D110: 0
B111: 10000 | C111: 10000 | D111: 0
B112: 10000 | C112: 10000 | D112: 0
B113: =G33 -> 200 | C113: 200 | D113: 0
B114: =G34 -> 100 | C114: 100 | D114: 0
B115: 100 | C115: 100 | D115: 0
B116: =I33 -> 10000 | C116: 10000 | D116: 0
B117: =I34 -> 10000 | C117: 10000 | D117: 0
B118: 10000 | C118: 10000 | D118: 0
B119: =X4 -> 0 | C119: 0 | D119: 0
B120: =X5 -> 0 | C120: 0 | D120: 0
B121: 0 | C121: 0 | D121: 0
B122: 0 | C122: 0 | D122: 0
B123: 0 | C123: 0 | D123: 0
B124: 0 | C124: 0 | D124: 0
B125: 0 | C125: 0 | D125: 0
B126: 0 | C126: 0 | D126: 0
B127: 0 | C127: 0 | D127: 0
B128: 0 | C128: 0 | D128: 0
B129: 0 | C129: 0 | D129: 0
B130: 0 | C130: 0 | D130: 0
B131: 0 | C131: 0 | D131: 0
B132: 0 | C132: 0 | D132: 0
C136: Sum | D136: =SUM(D43:D132) -> 0
